[Event "Caplin Hastings Masters 2023-24"]
[Site "Hastings"]
[Date "2024.01.01"]
[Round "5.7"]
[White "Vestby-Ellingsen, Mads"]
[Black "Ghasi, Ameet K"]
[Result "1/2-1/2"]
[ECO "E94"]
[WhiteElo "2329"]
[BlackElo "2509"]
[Annotator "TA"]
[PlyCount "125"]
[EventDate "2023.12.18"]
[EventType "swiss"]
[EventCountry "ENG"]
[SourceTitle "playchess.com"]
[Source "ChessBase"]
[SourceQuality "1"]
[TimeControl "40/6000+30:3000+30"]

{[%evp 20,125,88,75,99,98,95,89,101,89,119,81,86,61,61,62,67,66,94,61,88,86,88,67,85,88,111,83,85,83,79,74,85,67,76,64,88,0,76,64,64,54,71,73,91,69,84,52,97,39,81,81,102,39,47,27,35,37,46,46,43,44,53,40,43,32,27,24,35,0,0,0,0,0,0,0,0,0,0,-57,-31,-111,-118,-184,-188,-199,-204,-203,-133,-119,-76,-101,0,-160,0,0,0,0,0,-143,0,0,0,-131,0,0,0,-127]} 1. d4 {[%emt 0:00:15]} Nf6 {[%emt 0:01:10]} 2. c4 {[%emt 0:00:28]} g6 {[%emt 0:00:07]} 3. Nc3 {[%emt 0:00:13]} Bg7 {[%emt 0:00:05]} 4. e4 {[%emt 0:00:14]} d6 {[%emt 0:00:06]} 5. Nf3 {[%emt 0:00:10]} O-O {[%emt 0:00:13]} 6. Be2 {[%emt 0:00:15]} Nbd7 {[%emt 0:00:06]} 7. O-O {[%emt 0:00:20]} e5 {[%emt 0:00:03]} 8. Qc2 {[%emt 0:01:29]} c6 {[%emt 0:02:53]} 9. Rd1 {[%emt 0:02:16]} Qe7 {[%emt 0:13:47]} 10. d5 {[%emt 0:05:40]} c5 {[%emt 0:02:37]} 11. g3 {[%emt 0:01:04]} Kh8 {[%emt 0:11:20] E94: King's Indian: Classical: 6 Be2 e5 7 0-0: Various Black 7th moves.} 12. Bg5 {[%emt 0:06:59]} h6 {[%emt 0:05:43]} 13. Bd2 {[%emt 0:01:36]} Ng8 {[%emt 0:01:31] White is better.} 14. a3 {[%emt 0:03:10] [#]} a5 $146 {[%emt 0:09:33]} ({Predecessor:} 14... a6 15. Bd3 f6 16. Nh4 Qf7 17. f4 Ne7 18. f5 g5 19. Ng2 Rd8 20. Be2 Nf8 {1-0 Cvitan,O (2435)-Begic,D (2017) Split op 12th 2023 (3)}) 15. Nb5 {[%emt 0:06:08]} a4 {[%emt 0:02:26]} 16. b4 {[%emt 0:04:07] White has more active pieces.} axb3 {[%emt 0:03:31]} 17. Qxb3 {[%emt 0:00:12]} Ndf6 {[%emt 0:08:37]} 18. Qc2 {[%emt 0:03:18]} Bg4 {[%emt 0:01:47]} 19. Bc3 {[%emt 0:05:44]} Nh5 {[%emt 0:15:39]} 20. a4 {[%emt 0:17:10]} Ngf6 {[%emt 0:01:40]} 21. a5 {[%emt 0:07:00]} Ra6 {[%emt 0:03:24]} 22. Ne1 {[%emt 0:02:43]} Bc8 {[%emt 0:03:06]} 23. Ng2 {[%emt 0:03:01]} Bh3 {[%emt 0:01:47]} 24. Rdb1 {[%emt 0:06:41]} Rfa8 {[%emt 0:02:11]} 25. Ne3 {[%emt 0:01:16]} Kg8 {[%emt 0:02:31]} 26. Bf3 {[%emt 0:06:56]} Qd7 {[%emt 0:03:03]} 27. Ra3 {[%emt 0:01:36]} Qd8 {[%emt 0:03:02]} 28. Raa1 {[%emt 0:06:05]} (28. Bd2 {keeps more tension.} b6 29. axb6 Rxa3 30. b7) 28... Qd7 {[%emt 0:06:37]} 29. Na3 {[%emt 0:01:13]} Bf8 {[%emt 0:00:48]} 30. Ra2 {[%emt 0:02:40]} Qc7 {[%emt 0:00:23]} 31. Rab2 {[%emt 0:01:49]} Bc8 {[%emt 0:00:20]} 32. Qe2 {[%emt 0:02:19]} Qd7 {[%emt 0:01:34]} 33. Bd2 {[%emt 0:05:12]} Be7 {[%emt 0:01:05]} 34. Ng2 {[%emt 0:01:43]} (34. Nec2 $16) 34... Kh7 {[%emt 0:01:25]} 35. Qe3 {[%emt 0:00:59]} Bf8 {[%emt 0:00:48]} 36. Nc2 {[%emt 0:00:55]} (36. Ne1 $16) 36... Qh3 $14 {[%emt 0:01:02]} 37. Qe2 {[%emt 0:03:03]} Ng4 {[%emt 0:01:38]} 38. Bxg4 {[%emt 0:00:09]} Bxg4 {[%emt 0:00:04]} 39. f3 {[%emt 0:00:29]} Bc8 {[%emt 0:00:04]} 40. g4 {[%emt 0:02:00][%cal Bg3g4,Bg4g5][%mdl 32]} Nf6 {[%emt 0:01:09]} 41. Rb3 {[%emt 0:14:12]} Kg8 {[%emt 0:00:16]} 42. Nce1 {[%emt 0:01:48] Nd3 would be deadly.} h5 $1 {[%emt 0:09:15][%cal Rh5g4]} 43. g5 $1 {[%emt 0:01:13]} Nh7 {[%emt 0:14:47]} 44. f4 {[%emt 0:01:00]} (44. Qf2 {simplifies} Qd7 45. h4 Qe7 46. Bc3) 44... Qg4 {[%emt 0:04:01]} 45. Qxg4 {[%emt 0:07:08]} (45. Qf3 {is more complex.} exf4 46. h4 Bg7 47. Qxf4 Bd4+ 48. Kh1) 45... hxg4 {[%emt 0:00:04]} 46. fxe5 {[%emt 0:00:00]} dxe5 {[%emt 0:00:17]} 47. Nd3 {[%emt 0:01:40]} Rxa5 {[%emt 0:06:46]} 48. Bxa5 {[%emt 0:01:39]} ({Reject} 48. Nxe5 Ra2 49. Bf4 Be7 $17) 48... Rxa5 {[%emt 0:00:02]} 49. Rb5 {[%emt 0:08:50]} (49. Ne3 $11) 49... Ra3 {[%emt 0:15:23]} (49... Ra2 $5 {[%cal Rh7g5]}) 50. Nxc5 {[%emt 0:01:19]} (50. Nf2 $15) 50... Nxg5 $17 {[%emt 0:00:42][%cal Ob7b6]} ({Of course not} 50... b6 $6 51. Nb3 $11 (51. Rxb6 $2 {too greedy.} Bxc5+ 52. Kf1 Bxb6 $19)) 51. Nb3 {[%emt 0:06:21] Inhibits b6.} (51. Ne1 $17 {was called for.}) 51... Nxe4 $19 {[%emt 0:00:33] White must now prevent ...Nc3.} 52. Ra5 {[%emt 0:03:23] [#]} Rxa5 {[%emt 0:01:08]} 53. Nxa5 {[%emt 0:00:06]} Bc5+ {[%emt 0:00:58]} 54. Kh1 {[%emt 0:00:07]} Nf2+ {[%emt 0:00:25]} 55. Kg1 {[%emt 0:00:07][%cal Oa5b3] [#]} Ne4+ {[%emt 0:01:01]} (55... b6 $142 $1 56. Nb3 Bf5 57. Nxc5 Nh3+ 58. Kf1 Bxb1) 56. Kh1 $17 {[%emt 0:00:07]} Bf5 $2 {[%emt 0:01:44]} (56... b6 $17 57. Nb3 Bf2) 57. Rxb7 $11 {[%emt 0:06:52]} Nf2+ {[%emt 0:00:09]} 58. Kg1 {[%emt 0:00:05]} Bd3 {[%emt 0:00:54] ...Nh3+ is the strong threat. This pair of bishops is nice.} 59. Rb5 {[%emt 0:01:35]} (59. Nb3 $11) 59... Nh3+ {[%emt 0:00:06]} ({Black should try} 59... Ne4+ $17 60. Kh1 Bd4) 60. Kh1 {[%emt 0:00:04]} Nf2+ {[%emt 0:00:03]} (60... f5 $11) 61. Kg1 $17 {[%emt 0:00:05]} Nh3+ {[%emt 0:01:20]} ({Black should play} 61... Ne4+ $17 62. Kh1 Bd4) 62. Kh1 $11 {[%emt 0:00:07]} Nf2+ {[%emt 0:00:04]} (62... Bf8 $11) 63. Kg1 {[%emt 0:02:47] Weighted Error Value: White=0.24 (precise) /Black=0.21 (precise)} 1/2-1/2

[Event "Caplin Hastings Masters 2023-24"]
[Site "Hastings"]
[Date "2024.01.01"]
[Round "5.8"]
[White "Petrov, Martin"]
[Black "Fischer, Daniel"]
[Result "1/2-1/2"]
[ECO "C54"]
[WhiteElo "2501"]
[BlackElo "2341"]
[Annotator "TA"]
[PlyCount "65"]
[EventDate "2023.12.18"]
[EventType "swiss"]
[EventCountry "ENG"]
[SourceTitle "playchess.com"]
[Source "ChessBase"]
[SourceQuality "1"]
[TimeControl "40/6000+30:3000+30"]

{[%evp 11,65,18,23,4,1,14,23,19,27,1,20,0,0,0,0,0,0,-12,0,0,0,0,0,-10,-20,-17,0,-56,-49,-52,-32,-55,-54,-50,-57,-56,-56,-62,0,0,0,0,10,22,15,8,8,-2,-3,-4,-5,-5,-4,-4,0,-27]} 1. e4 {[%emt 0:00:04]} e5 {[%emt 0:00:11]} 2. Nf3 {[%emt 0:00:08]} Nc6 {[%emt 0:00:05]} 3. Bc4 {[%emt 0:00:11]} Bc5 {[%emt 0:00:06]} 4. O-O {[%emt 0:00:24]} Nf6 {[%emt 0:00:14]} 5. d3 {[%emt 0:00:06]} d6 {[%emt 0:00:24]} 6. c3 {[%emt 0:00:06]} a6 {[%emt 0:00:28]} 7. Bg5 {[%emt 0:05:42][%cal Bc1g5,Bg5h4,Bh4g3][%mdl 32] C54: Giuoco Piano: 4 c3 Nf6, main lines with 5 d4 and 5 d3.} h6 {[%emt 0:01:00]} 8. Bh4 {[%emt 0:00:04]} Ba7 {[%emt 0:00:45]} 9. Nbd2 {[%emt 0:00:07] White has an edge.} g5 {[%emt 0:02:15] 9...Qe7 is more fashionable.} 10. Bg3 {[%emt 0:00:07][%cal Od3d4]} Qe7 {[%emt 0:00:17]} 11. b4 {[%emt 0:02:00]} Nd7 {[%emt 0:01:27][%cal Bf6d7,Bd7f8,Bf8g6][%mdl 32]} 12. b5 $1 {[%emt 0:05:44]} axb5 {[%emt 0:20:39]} 13. Bxb5 {[%emt 0:00:13]} h5 {[%emt 0:00:57]} 14. h4 {[%emt 0:00:47]} g4 {[%emt 0:00:28]} 15. Ne1 {[%emt 0:01:19][%cal Bf3e1,Be1c2,Bc2e3,Be3d5][%mdl 32] [#]} Nf8 $146 {[%emt 0:01:18]} ({Predecessor:} 15... Nd8 16. d4 exd4 17. cxd4 Bxd4 18. Rc1 Ne6 19. Nc2 Bc5 20. Nb3 O-O 21. Nxc5 Nexc5 {0-1 Garcia Martin,M (2350)-Injac,T (2431) EU-chT (Women) 24th 2023 (8.5)}) 16. Nc2 {[%emt 0:02:08]} Bd7 {[%emt 0:16:04]} 17. Nc4 {[%emt 0:02:29]} Ng6 $1 {[%emt 0:03:04]} 18. N2e3 {[%emt 0:02:06] Wards off f5} O-O {[%emt 0:11:17]} (18... Kf8 $5 {[%cal Rg6h4]}) 19. d4 {[%emt 0:44:47]} exd4 $15 {[%emt 0:10:12][%mdl 64] [#] Discovered Attack} (19... Nxh4 20. Nd5 Qd8 21. Nxc7 Qxc7 22. Bxh4 $16) 20. Nd5 {[%emt 0:02:38][%csl LRc7,LRe7]} Qd8 {[%emt 0:00:07] Strongly threatening ...Be6.} (20... Qxe4 $2 21. Nf6+ (21. Nxc7 Nf4 $11) 21... Kg7 22. Nxe4 $18) 21. cxd4 {[%emt 0:08:48]} Be6 $1 {[%emt 0:00:48]} ({Don't play} 21... Bxd4 22. Bxc6 bxc6 23. Nxc7 (23. Qxd4 cxd5 24. Qxd5 Be6 $17) 23... Bxa1 24. Nxa8 $11) ({Reject} 21... Nxd4 22. Bxd7 c6 23. Nde3 Qxd7 24. Nxd6 $11) (21... Nxh4 22. e5 dxe5 23. dxe5 $16) 22. Bxc6 {[%emt 0:07:52]} bxc6 {[%emt 0:00:05]} 23. Nde3 {[%emt 0:00:14]} Nxh4 {[%emt 0:05:11] ...f5 would be deadly.} 24. Na5 $1 {[%emt 0:00:30]} Bd7 {[%emt 0:02:44]} (24... Bxd4 $2 25. Nxc6 Qg5 26. Bxh4 Qxh4 27. Nxd4 $18) (24... c5 $1 $15 25. d5 Bd7) 25. Rc1 $1 $36 {[%emt 0:00:22][%mdl 2048] Black is under pressure. The position is equal.} Ng6 {[%emt 0:15:20]} 26. Nxc6 {[%emt 0:00:57]} Bxc6 {[%emt 0:00:05]} 27. Rxc6 {[%emt 0:00:02] Black must now prevent Nd5.} Qe8 $1 {[%emt 0:02:18][%csl LRc6,LRe4]} 28. Rxc7 {[%emt 0:10:18]} Qxe4 {[%emt 0:00:05]} 29. Qc2 {[%emt 0:02:01]} Qxc2 {[%emt 0:02:18]} 30. Rxc2 {[%emt 0:00:04]} Bxd4 {[%emt 0:00:28]} 31. Bxd6 {[%emt 0:00:07]} Rfd8 {[%emt 0:02:00] [#] And now ...Bxe3 would win.} 32. Nf5 {[%emt 0:00:05]} Bf6 {[%emt 0:03:01]} 33. Bc7 {[%emt 0:03:22] Dodges Ra5.   Weighted Error Value: White=0.08 (flawless) /Black=0.05 (flawless)} 1/2-1/2

[Event "Caplin Hastings Masters 2023-24"]
[Site "Hastings"]
[Date "2024.01.01"]
[Round "5.9"]
[White "Sulskis, Sarunas"]
[Black "Unuk, Laura"]
[Result "1-0"]
[ECO "B12"]
[WhiteElo "2490"]
[BlackElo "2345"]
[Annotator "TA"]
[PlyCount "80"]
[EventDate "2023.12.18"]
[EventType "swiss"]
[EventCountry "ENG"]
[SourceTitle "playchess.com"]
[Source "ChessBase"]
[SourceQuality "1"]
[TimeControl "40/6000+30:3000+30"]

{[%evp 16,80,43,43,45,0,0,-35,-11,-22,-10,-37,-20,-12,-31,-52,-52,-52,-52,-52,-46,-43,-45,-50,-43,-47,-45,-51,-46,-64,-47,-50,-53,-49,-48,-51,-38,-66,-84,-232,-120,-103,352,317,440,422,391,191,661,639,1030,852,772,636,620,616,742,750,744,2332,1774,2597,2439,2006,1778,1525,29987]} 1. e4 {[%emt 0:00:06]} c6 {[%emt 0:00:27]} 2. d4 {[%emt 0:00:32]} d5 {[%emt 0:00:07]} 3. e5 {[%emt 0:00:26]} Bf5 {[%emt 0:05:03]} 4. h4 {[%emt 0:02:20]} h5 {[%emt 0:00:25]} 5. c4 {[%emt 0:00:05]} dxc4 {[%emt 0:08:20]} 6. Bxc4 {[%emt 0:02:03]} e6 {[%emt 0:00:06]} 7. Nc3 {[%emt 0:00:29][%cal Bb1c3,Bc3e4,Be4d6][%mdl 32]} Nd7 {[%emt 0:01:48]} 8. Nge2 {[%emt 0:02:18]} Nb6 {[%emt 0:08:11]} 9. Bb3 {[%emt 0:00:37]} Be7 {[%emt 0:07:00] B12: Caro-Kann: Advance Variation.} 10. Ng3 {[%emt 0:24:40]} Bg6 {[%emt 0:13:11]} 11. Nce4 {[%emt 0:08:08] [#]} Qd7 $146 {[%emt 0:04:14] Black is slightly better.} ({Predecessor:} 11... Nh6 12. Be3 Nf5 13. Nxf5 Bxf5 14. Qf3 Nd5 15. Bd2 Qb6 16. Bc3 Qb5 17. Nd2 Bg4 {1-0 Stojanovic,D (2453)-Simic,A (2308) BIH-chT 21st 2023 (8.3)}) 12. a4 {[%emt 0:07:47]} a5 {[%emt 0:06:31]} 13. O-O {[%emt 0:00:41]} Bxh4 {[%emt 0:02:19]} 14. Nd6+ {[%emt 0:06:55]} Kf8 {[%emt 0:00:40]} 15. Bc2 {[%emt 0:00:49]} Bxc2 {[%emt 0:15:14]} 16. Qxc2 {[%emt 0:00:06]} Nc8 {[%emt 0:01:05]} 17. Nge4 {[%emt 0:07:42] [#] Nc5 would be deadly.} Nxd6 {[%emt 0:01:54]} 18. exd6 {[%emt 0:03:59]} Nf6 {[%emt 0:11:06]} 19. Bf4 {[%emt 0:07:02]} Nxe4 {[%emt 0:07:26]} (19... Nd5 {with more complications.} 20. Nc5 Qc8 21. Bh2 Bf6) 20. Qxe4 {[%emt 0:00:08]} Bd8 {[%emt 0:00:15][%cal Bh4d8,Bd8b6,Bb6a7][%mdl 32]} 21. Ra3 {[%emt 0:02:20]} h4 {[%emt 0:01:30]} 22. Rc1 {[%emt 0:07:13]} Kg8 {[%emt 0:04:02]} (22... g5 {keeps more tension.} 23. Be5 f6 24. Rf3 Rh6) 23. Rc5 {[%emt 0:04:28]} Bb6 {[%emt 0:00:47]} 24. Rc4 {[%emt 0:04:34]} Ba7 {[%emt 0:04:10]} 25. Rb3 {[%emt 0:02:43]} f6 {[%emt 0:04:47]} 26. Qg6 {[%emt 0:02:31]} Rf8 {[%emt 0:02:07]} 27. Rb5 {[%emt 0:03:41] [#]} e5 {[%emt 0:00:38]} (27... cxb5 28. Rc7 $18) ({Better is} 27... Bxd4 $1 $19 {Hoping for ...e5.} 28. Rb3 e5) 28. dxe5 $17 {[%emt 0:00:23] Black must now prevent e6.} fxe5 {[%emt 0:00:25][%mdl 8192]} (28... cxb5 $2 29. Rc7 $18) (28... h3 $17 {keeps the pressure on. Threatens to win with ...hxg2.} 29. Qg3 (29. Rxa5 hxg2 30. Qxg2 Bb6 $17) 29... Qf7 30. exf6 (30. Rxa5 $2 {loses.} h2+ $19) (30. e6 $2 Qxe6 31. Rc1 cxb5 $19) 30... Bxf2+ 31. Kxf2 Qxf6) 29. Rxe5 $18 {[%emt 0:00:18]} (29. Rxa5 $2 {too greedy.} Bxf2+ 30. Kxf2 Rh6 $19) 29... Qf7 {[%emt 0:00:39] Prevents Re7.} 30. Qxf7+ {[%emt 0:00:40]} Rxf7 {[%emt 0:00:12]} 31. Rxa5 {[%emt 0:01:04]} (31. Rce4 $142) 31... b6 $2 {[%emt 0:00:48]} (31... Bb6 32. Re5 Bd8) 32. Re5 {[%emt 0:02:01] White is clearly winning.} c5 {[%emt 0:00:21]} 33. Bg5 {[%emt 0:00:36] aiming for Re8+.} Rh5 {[%emt 0:00:24]} 34. Rxh4 {[%emt 0:00:31]} Rxh4 {[%emt 0:00:43]} 35. Bxh4 {[%emt 0:00:08][%mdl 4096] Endgame KRB-KRB} Rd7 {[%emt 0:00:28]} 36. Re7 {[%emt 0:02:23]} Rxe7 {[%emt 0:00:25]} 37. Bxe7 {[%emt 0:00:08] White wants to mate with d7.} Kf7 {[%emt 0:00:06]} 38. Bd8 {[%emt 0:00:43]} Ke6 {[%emt 0:00:51]} 39. Bc7 {[%emt 0:00:15]} c4 {[%emt 0:00:29]} 40. Kf1 {[%emt 0:01:06]} Kd5 {[%emt 0:00:19] An entertaining game by Sulskis.   Weighted Error Value: White=0.32/Black=0.51} 1-0

[Event "Caplin Hastings Masters 2023-24"]
[Site "Hastings"]
[Date "2024.01.01"]
[Round "5.10"]
[White "Wadsworth, Matthew J"]
[Black "Waldhausen Gordon, Frederick"]
[Result "0-1"]
[ECO "E04"]
[WhiteElo "2448"]
[BlackElo "2338"]
[Annotator "RC"]
[PlyCount "166"]
[EventDate "2023.12.18"]
[EventType "swiss"]
[EventCountry "ENG"]
[SourceTitle "playchess.com"]
[Source "ChessBase"]
[SourceQuality "1"]
[TimeControl "40/6000+30:3000+30"]

1. d4 {[%emt 0:00:07]} Nf6 {[%emt 0:00:03]} 2. c4 {[%emt 0:00:21]} e6 {[%emt 0:00:03]} 3. Nf3 {[%emt 0:00:15]} d5 {[%emt 0:00:08]} 4. g3 {[%emt 0:00:26]} dxc4 {[%emt 0:00:05]} 5. Bg2 {[%emt 0:00:16]} c5 {[%emt 0:00:03]} 6. O-O {[%emt 0:00:36]} Nc6 {[%emt 0:00:25]} 7. Ne5 {[%emt 0:00:35]} Bd7 {[%emt 0:01:08]} 8. Na3 {[%emt 0:00:44]} Rc8 {[%emt 0:03:34]} 9. Naxc4 {[%emt 0:10:46]} cxd4 {[%emt 0:11:36]} 10. Qb3 {[%emt 0:00:48]} Nxe5 {[%emt 0:01:25]} 11. Nxe5 {[%emt 0:00:18]} Bc6 {[%emt 0:03:10]} 12. Bxc6+ {[%emt 0:08:18]} bxc6 {[%emt 0:00:32]} 13. Qa4 {[%emt 0:03:11]} Qd5 {[%emt 0:08:32]} 14. Bf4 {[%emt 0:19:04]} Bd6 {[%emt 0:03:02]} 15. Nf3 {[%emt 0:04:26]} e5 {[%emt 0:01:45]} 16. Bg5 {[%emt 0:00:25]} Ne4 {[%emt 0:05:53]} 17. Rad1 {[%emt 0:01:54]} Nc5 {[%emt 0:06:01]} 18. Qc2 {[%emt 0:03:47]} O-O {[%emt 0:01:23]} 19. Bc1 {[%emt 0:02:29]} f5 {[%emt 0:12:47]} 20. Nd2 {[%emt 0:07:15]} Rf6 {[%emt 0:11:52]} 21. b3 {[%emt 0:02:19]} Ne4 {[%emt 0:02:23]} 22. Nc4 {[%emt 0:05:38]} Nc3 {[%emt 0:01:33]} 23. Rde1 {[%emt 0:00:10]} Bc5 {[%emt 0:03:47]} 24. e3 {[%emt 0:07:21]} Ne4 {[%emt 0:12:27]} 25. f3 {[%emt 0:02:29]} Ng5 {[%emt 0:07:37]} 26. exd4 {[%emt 0:05:39]} Bxd4+ {[%emt 0:00:17]} 27. Kg2 {[%emt 0:00:19]} Nf7 {[%emt 0:04:06]} 28. Rd1 {[%emt 0:03:46]} Nd6 {[%emt 0:01:20]} 29. Nxd6 {[%emt 0:07:56]} Qxd6 {[%emt 0:00:12]} 30. Bb2 {[%emt 0:01:17]} c5 {[%emt 0:01:58]} 31. Rfe1 {[%emt 0:01:03]} Rc6 {[%emt 0:02:39]} 32. Qe2 {[%emt 0:01:36]} Qd5 {[%emt 0:00:55]} 33. Qb5 {[%emt 0:01:09]} a6 {[%emt 0:01:30]} 34. Qe2 {[%emt 0:03:10]} Rfe6 {[%emt 0:01:10]} 35. Rd2 {[%emt 0:00:47]} e4 {[%emt 0:01:22]} 36. Red1 {[%emt 0:02:21]} Rcd6 {[%emt 0:00:06]} 37. b4 {[%emt 0:02:32]} Qc6 {[%emt 0:00:22]} 38. bxc5 {[%emt 0:02:25]} Bxc5 {[%emt 0:00:11]} 39. fxe4 {[%emt 0:00:44]} Rxe4 {[%emt 0:00:50]} 40. Qf3 {[%emt 0:00:22]} Rde6 {[%emt 0:00:33]} 41. Rd8+ {[%emt 0:04:10]} Bf8 {[%emt 0:01:52]} 42. Bd4 {[%emt 0:03:23]} g6 {[%emt 0:16:12]} 43. Bf2 {[%emt 0:04:13]} Kf7 {[%emt 0:00:46]} 44. R1d7+ {[%emt 0:06:35]} Be7 {[%emt 0:00:51]} 45. Ra7 {[%emt 0:01:18]} Kg7 {[%emt 0:06:52]} 46. Rdd7 {[%emt 0:02:02]} Kf8 {[%emt 0:03:20]} 47. Rac7 {[%emt 0:04:24]} Qb5 {[%emt 0:04:11]} 48. Qc3 {[%emt 0:09:50]} Qe5 {[%emt 0:00:51]} 49. Qxe5 {[%emt 0:06:14]} R4xe5 {[%emt 0:00:18]} 50. Rc8+ {[%emt 0:03:11]} Kf7 {[%emt 0:00:41]} 51. Rh8 {[%emt 0:00:26]} Kg7 {[%emt 0:00:56]} 52. Re8 {[%emt 0:00:10]} Re2 {[%emt 0:00:41]} 53. Kf1 {[%emt 0:02:13]} Kf6 {[%emt 0:02:55]} 54. Rh8 {[%emt 0:00:36]} Kg7 {[%emt 0:02:17]} 55. Ra8 {[%emt 0:02:31]} Kh6 {[%emt 0:01:34]} 56. a4 {[%emt 0:01:15]} Kg5 {[%emt 0:01:04]} 57. h3 {[%emt 0:00:47]} h5 {[%emt 0:02:16]} 58. Rc8 {[%emt 0:01:16]} R2e4 {[%emt 0:02:16]} 59. Rcc7 {[%emt 0:00:59]} h4 {[%emt 0:01:51]} 60. gxh4+ {[%emt 0:00:14]} Kh5 {[%emt 0:00:08]} 61. Kg2 {[%emt 0:02:25]} Bxh4 {[%emt 0:00:58]} 62. Rh7+ {[%emt 0:00:12]} Kg5 {[%emt 0:00:06]} 63. Bxh4+ {[%emt 0:00:19]} Rxh4 {[%emt 0:00:10]} 64. Rxh4 {[%emt 0:00:04]} Kxh4 {[%emt 0:00:06]} 65. Rc4+ {[%emt 0:00:03]} Kh5 {[%emt 0:01:23]} 66. Kf3 {[%emt 0:00:59]} g5 {[%emt 0:00:26]} 67. Rc8 {[%emt 0:00:50]} Re4 {[%emt 0:00:48]} 68. Rh8+ {[%emt 0:00:17]} Kg6 {[%emt 0:00:09]} 69. Rg8+ {[%emt 0:00:14]} Kh6 {[%emt 0:00:12]} 70. Rf8 {[%emt 0:00:14]} Rf4+ {[%emt 0:00:22]} 71. Kg3 {[%emt 0:00:24]} Kg7 {[%emt 0:00:17]} 72. Rc8 {[%emt 0:01:04]} Rxa4 {[%emt 0:00:13]} 73. Rc6 {[%emt 0:00:06]} Ra3+ {[%emt 0:00:29]} 74. Kg2 {[%emt 0:00:05]} a5 {[%emt 0:00:25]} 75. Ra6 {[%emt 0:00:13]} a4 {[%emt 0:00:19]} 76. Kh2 {[%emt 0:00:07]} f4 {[%emt 0:00:46]} 77. Kg2 {[%emt 0:00:04]} Kf7 {[%emt 0:00:58]} 78. Kh2 {[%emt 0:00:51]} Ra2+ {[%emt 0:00:12]} 79. Kg1 {[%emt 0:00:08]} a3 {[%emt 0:00:13]} 80. Kf1 {[%emt 0:00:44]} f3 {[%emt 0:00:35]} 81. Kg1 {[%emt 0:00:20]} Rg2+ {[%emt 0:00:25]} 82. Kh1 {[%emt 0:00:18]} a2 {[%emt 0:00:14]} 83. h4 {[%emt 0:00:04]} Rb2 {[%emt 0:00:06]} 0-1

[Event "Caplin Hastings Masters 2023-24"]
[Site "Hastings"]
[Date "2024.01.01"]
[Round "5.11"]
[White "Gallagher, Joseph G."]
[Black "Nielsen, Andre"]
[Result "1/2-1/2"]
[ECO "C48"]
[WhiteElo "2427"]
[BlackElo "2239"]
[Annotator "RC"]
[PlyCount "126"]
[EventDate "2023.12.18"]
[EventType "swiss"]
[EventCountry "ENG"]
[SourceTitle "playchess.com"]
[Source "ChessBase"]
[SourceQuality "1"]
[TimeControl "40/6000+30:3000+30"]

1. e4 {[%emt 0:08:13]} e5 {[%emt 0:00:17]} 2. Nf3 {[%emt 0:00:11]} Nc6 {[%emt 0:00:12]} 3. Nc3 {[%emt 0:01:16]} Nf6 {[%emt 0:00:30]} 4. Bb5 {[%emt 0:00:05]} Nd4 {[%emt 0:05:04]} 5. O-O {[%emt 0:02:42]} c6 {[%emt 0:00:44]} 6. Bd3 {[%emt 0:09:09]} Nxf3+ {[%emt 0:00:35]} 7. Qxf3 {[%emt 0:00:07]} d6 {[%emt 0:00:10]} 8. Re1 {[%emt 0:06:14]} Be7 {[%emt 0:06:43]} 9. Be2 {[%emt 0:08:09]} O-O {[%emt 0:09:00]} 10. d3 {[%emt 0:03:20]} Be6 {[%emt 0:03:16]} 11. Qg3 {[%emt 0:07:30]} Ne8 {[%emt 0:14:22]} 12. Bg4 {[%emt 0:00:22]} f5 {[%emt 0:00:54]} 13. exf5 {[%emt 0:01:49]} Bxf5 {[%emt 0:00:11]} 14. Bxf5 {[%emt 0:04:30]} Rxf5 {[%emt 0:00:14]} 15. Qh3 {[%emt 0:01:22]} g6 {[%emt 0:00:37]} 16. Ne4 {[%emt 0:01:02]} Ng7 {[%emt 0:03:45]} 17. d4 {[%emt 0:13:27]} exd4 {[%emt 0:14:21]} 18. Qb3+ {[%emt 0:02:47]} d5 {[%emt 0:00:49]} 19. Ng3 {[%emt 0:00:07]} Rf7 {[%emt 0:01:34]} 20. Qxb7 {[%emt 0:00:12]} Qc8 {[%emt 0:03:16]} 21. Qb3 {[%emt 0:03:48]} Rb8 {[%emt 0:05:35]} 22. Qd3 {[%emt 0:00:54]} c5 {[%emt 0:17:09]} 23. c4 {[%emt 0:16:44]} Qa6 {[%emt 0:00:00]} 24. b3 {[%emt 0:03:19]} dxc4 {[%emt 0:00:00]} 25. bxc4 {[%emt 0:00:04]} Rb4 {[%emt 0:00:00]} 26. Ne4 {[%emt 0:03:44]} Qxc4 {[%emt 0:00:00]} 27. Qg3 {[%emt 0:01:16]} Qd5 {[%emt 0:00:42]} 28. Bg5 {[%emt 0:03:43]} Bxg5 {[%emt 0:11:59]} 29. Nxg5 {[%emt 0:00:05]} Rf5 {[%emt 0:00:56]} 30. h4 {[%emt 0:02:45]} h6 {[%emt 0:02:22]} 31. Ne4 {[%emt 0:01:53]} Kh7 {[%emt 0:01:26]} 32. h5 {[%emt 0:02:54]} Nxh5 {[%emt 0:05:32]} 33. Qc7+ {[%emt 0:00:20]} Rf7 {[%emt 0:00:30]} 34. Qxc5 {[%emt 0:00:21]} Qxc5 {[%emt 0:00:08]} 35. Nxc5 {[%emt 0:00:03]} Nf4 {[%emt 0:02:02]} 36. Rab1 {[%emt 0:03:12]} Rxb1 {[%emt 0:02:21]} 37. Rxb1 {[%emt 0:00:01]} Rc7 {[%emt 0:00:36]} 38. Nb3 {[%emt 0:00:43]} d3 {[%emt 0:01:00]} 39. g3 {[%emt 0:00:39]} Ne2+ {[%emt 0:00:35]} 40. Kg2 {[%emt 0:00:22]} Kg7 {[%emt 0:00:28]} 41. Rd1 {[%emt 0:50:39]} Rc3 {[%emt 0:05:48]} 42. Kf3 {[%emt 0:00:00]} Nc1 {[%emt 0:01:20]} 43. Nxc1 {[%emt 0:00:00]} d2+ {[%emt 0:00:45]} 44. Nd3 {[%emt 0:00:00]} Rxd3+ {[%emt 0:00:08]} 45. Ke2 {[%emt 0:00:00]} Rd7 {[%emt 0:02:02]} 46. Rxd2 {[%emt 0:00:00]} Rxd2+ {[%emt 0:01:43]} 47. Kxd2 {[%emt 0:00:00]} Kf6 {[%emt 0:00:34]} 48. Ke3 {[%emt 0:00:00]} Kf5 {[%emt 0:03:49]} 49. f3 {[%emt 0:00:00]} a5 {[%emt 0:17:08]} 50. a4 {[%emt 0:00:00]} h5 {[%emt 0:14:20]} 51. Kf2 {[%emt 0:00:00]} Ke5 {[%emt 0:00:28]} 52. Ke3 {[%emt 0:00:00]} g5 {[%emt 0:01:04]} 53. f4+ {[%emt 0:00:00]} gxf4+ {[%emt 0:00:11]} 54. gxf4+ {[%emt 0:00:00]} Kf5 {[%emt 0:00:09]} 55. Kf3 {[%emt 0:00:00]} h4 {[%emt 0:00:13]} 56. Kg2 {[%emt 0:00:00]} Kxf4 {[%emt 0:00:37]} 57. Kh3 {[%emt 0:00:00]} Ke4 {[%emt 0:00:52]} 58. Kxh4 {[%emt 0:00:00]} Kd4 {[%emt 0:00:07]} 59. Kg3 {[%emt 0:00:00]} Kc4 {[%emt 0:00:06]} 60. Kf3 {[%emt 0:00:00]} Kb4 {[%emt 0:00:09]} 61. Ke2 {[%emt 0:00:00]} Kxa4 {[%emt 0:00:10]} 62. Kd2 {[%emt 0:00:00]} Kb3 {[%emt 0:00:08]} 63. Kc1 {[%emt 0:00:00]} a4 {[%emt 0:00:11]} 1/2-1/2